{"text_format":"1","workbook":"xlsx","n_sheets":5,"sheets":["OPEN-LIM","IMPOSTA TURNI Open-Lim","Es. OPEN-LIM","Es.IMPOSTA TURNI Open-Lim","PARAMETRI"],"not_rendered":{"charts":0,"images":1,"macros":1,"external_links":0,"defined_names":6,"comments":4,"pivot_tables":0},"unopened":[],"bounds":{"document_bytes":16777216,"sheet_cells":100000,"rows_first":2000,"rows_last":500,"rows_between":2000,"halvings":0,"cell_chars":16384,"cell_head_chars":4096},"cells_cut":0,"cells_raw":0,"read":"whole","date_system":"1900"}

{"sheet":"OPEN-LIM","index":0,"n_rows":46,"n_cols":32,"rows_kept":46,"cut":false,"hidden":false,"merged":[[1,14,1,26],[9,14,9,26],[10,14,10,26],[12,29,12,31],[13,29,14,31],[2,15,2,16],[12,1,15,1],[12,2,15,2],[45,22,46,24],[12,4,15,4],[12,3,15,3],[44,1,44,5]]}
[]
[null,null,null,null,null,null,null,null,null,null,null,null,null,null,"PARAMETRI TORNEO x stima n. INCONTRI MAX (da compilare)"]
[null,null,null,null,null,null,null,null,null,null,null,null,null,null,null,"n. giorni TORNEO",null,null,null,"n. campi con luci",null,"n. campi senza luci",null,"superficie",null,"indoor / outdoor"]
[]
[null,null,null,null,null,null,null,null,null,null,null,null,null,null,null,null,null,"formula SING.",null,null,null,"interv. tra SING",null,"1° orario fer.",null,"ult. orario fer."]
[null,null,null,null,null,null,null,null,null,null,null,null,null,null,null,null,null,"formula DOPPI",null,null,null,"interv. tra DOPPI",null,"1° orario fest.",null,"ult. orario fest."]
[]
[]
[]
[null,null,null,null,null,null,null,null,null,null,null,null,null,null,"PROGRAMMA torneo"]
[null,null,null,null,null,null,null,null,null,null,null,null,null,null,"PROGRAMMAZIONE INDICATIVA DEGLI INCONTRI DI TUTTI I TABELLONI DEL TORNEO (gg mm- gg mm aaaa)"]
[]
[null,"GARE","n° \nATLETI ISCRITTI\n","n° \nPARTITE \nDA\nPIANIFICARE","ass.","     data","gg/mm","gg/mm","gg/mm","gg/mm","gg/mm","gg/mm","gg/mm","gg/mm","gg/mm","gg/mm","gg/mm","gg/mm","gg/mm","gg/mm","gg/mm","gg/mm","gg/mm","gg/mm","gg/mm","gg/mm","gg/mm","gg/mm","gg/mm","INCONTRI"]
[null,null,null,null,null,"  giorno",{"$f":"IF(G13=\"gg/mm\",\"\",(IF(G13=\"\",\"\",G13)))","v":""},{"$f":"IF(H13=\"gg/mm\",\"\",(IF(H13=\"\",\"\",H13)))","v":""},"","","","","","","","","","","","","","","","","","","","","","DATA FINE TORNEO"]
[null,null,null,null,null,"    tipo"]
[null,null,null,null,null,"campi/\nturni","IMPOSTA","IMPOSTA","IMPOSTA","IMPOSTA","IMPOSTA","IMPOSTA","IMPOSTA","IMPOSTA","IMPOSTA","IMPOSTA","IMPOSTA","IMPOSTA","IMPOSTA","IMPOSTA","IMPOSTA","IMPOSTA","IMPOSTA","IMPOSTA","IMPOSTA","IMPOSTA","IMPOSTA","IMPOSTA","IMPOSTA","n°","n.d."]
[null,null,null,null,null,"MAX INC.",{"$f":"IF('IMPOSTA TURNI Open-Lim'!B2>0,'IMPOSTA TURNI Open-Lim'!B2,0)","v":0},{"$f":"IF('IMPOSTA TURNI Open-Lim'!C2>0,'IMPOSTA TURNI Open-Lim'!C2,0)","v":0},{"$f":"IF('IMPOSTA TURNI Open-Lim'!D2>0,'IMPOSTA TURNI Open-Lim'!D2,0)","v":0},{"$f":"IF('IMPOSTA TURNI Open-Lim'!E2>0,'IMPOSTA TURNI Open-Lim'!E2,0)","v":0},{"$f":"IF('IMPOSTA TURNI Open-Lim'!F2>0,'IMPOSTA TURNI Open-Lim'!F2,0)","v":0},{"$f":"IF('IMPOSTA TURNI Open-Lim'!G2>0,'IMPOSTA TURNI Open-Lim'!G2,0)","v":0},{"$f":"IF('IMPOSTA TURNI Open-Lim'!H2>0,'IMPOSTA TURNI Open-Lim'!H2,0)","v":0},{"$f":"IF('IMPOSTA TURNI Open-Lim'!I2>0,'IMPOSTA TURNI Open-Lim'!I2,0)","v":0},{"$f":"IF('IMPOSTA TURNI Open-Lim'!J2>0,'IMPOSTA TURNI Open-Lim'!J2,0)","v":0},{"$f":"IF('IMPOSTA TURNI Open-Lim'!K2>0,'IMPOSTA TURNI Open-Lim'!K2,0)","v":0},{"$f":"IF('IMPOSTA TURNI Open-Lim'!L2>0,'IMPOSTA TURNI Open-Lim'!L2,0)","v":0},{"$f":"IF('IMPOSTA TURNI Open-Lim'!M2>0,'IMPOSTA TURNI Open-Lim'!M2,0)","v":0},{"$f":"IF('IMPOSTA TURNI Open-Lim'!N2>0,'IMPOSTA TURNI Open-Lim'!N2,0)","v":0},{"$f":"IF('IMPOSTA TURNI Open-Lim'!O2>0,'IMPOSTA TURNI Open-Lim'!O2,0)","v":0},{"$f":"IF('IMPOSTA TURNI Open-Lim'!P2>0,'IMPOSTA TURNI Open-Lim'!P2,0)","v":0},{"$f":"IF('IMPOSTA TURNI Open-Lim'!Q2>0,'IMPOSTA TURNI Open-Lim'!Q2,0)","v":0},{"$f":"IF('IMPOSTA TURNI Open-Lim'!R2>0,'IMPOSTA TURNI Open-Lim'!R2,0)","v":0},{"$f":"IF('IMPOSTA TURNI Open-Lim'!S2>0,'IMPOSTA TURNI Open-Lim'!S2,0)","v":0},{"$f":"IF('IMPOSTA TURNI Open-Lim'!T2>0,'IMPOSTA TURNI Open-Lim'!T2,0)","v":0},{"$f":"IF('IMPOSTA TURNI Open-Lim'!U2>0,'IMPOSTA TURNI Open-Lim'!U2,0)","v":0},{"$f":"IF('IMPOSTA TURNI Open-Lim'!V2>0,'IMPOSTA TURNI Open-Lim'!V2,0)","v":0},{"$f":"IF('IMPOSTA TURNI Open-Lim'!W2>0,'IMPOSTA TURNI Open-Lim'!W2,0)","v":0},{"$f":"IF('IMPOSTA TURNI Open-Lim'!X2>0,'IMPOSTA TURNI Open-Lim'!X2,0)","v":0}]
[null,"SINGOLARE\nMASCHILE",null,null,null,null,null,null,null,null,null,null,null,null,null,null,null,null,null,null,null,"32esimi","16esimi","OTTAVI","QUARTI ","SEMIFINALI ","FINALE"]
[null,null,0,{"$f":"IF(C19>0,C19-AD19-1,0)","v":0},0,{"$f":"E19/C19","v":{"$error":"#DIV/0!"}},null,null,null,null,null,null,null,null,null,null,null,null,null,null,null,null,null,null,null,null,null,null,null,{"$f":"SUM(G19:AC19)","v":0},null,{"$f":"AE19/AD19","v":{"$error":"#DIV/0!"}}]
[null,"CONCLUSIONE SEZIONE xx"]
[null,null,0,{"$f":"IF(C21>0,C21-AD21-1,0)","v":0},0,{"$f":"E21/C21","v":{"$error":"#DIV/0!"}},null,null,null,null,null,null,null,null,null,null,null,null,null,null,null,null,null,null,null,null,null,null,null,{"$f":"SUM(G21:AC21)","v":0},null,{"$f":"AE21/AD21","v":{"$error":"#DIV/0!"}}]
[null,"CONCLUSIONE SEZIONE xx"]
[null,null,0,{"$f":"IF(C23>0,C23-AD23-1,0)","v":0},0,{"$f":"E23/C23","v":{"$error":"#DIV/0!"}},null,null,null,null,null,null,null,null,null,null,null,null,null,null,null,null,null,null,null,null,null,null,null,{"$f":"SUM(G23:AC23)","v":0},null,{"$f":"AE23/AD23","v":{"$error":"#DIV/0!"}}]
[null,"CONCLUSIONE SEZIONE xx"]
[null,null,0,{"$f":"IF(C25>0,C25-AD25-1,0)","v":0},0,{"$f":"E25/C25","v":{"$error":"#DIV/0!"}},null,null,null,null,null,null,null,null,null,null,null,null,null,null,null,null,null,null,null,null,null,null,null,{"$f":"SUM(G25:AC25)","v":0},null,{"$f":"AE25/AD25","v":{"$error":"#DIV/0!"}}]
[null,"CONCLUSIONE SEZIONE xx"]
[null,null,0,{"$f":"IF(C27>0,C27-AD27-1,0)","v":0},0,{"$f":"E27/C27","v":{"$error":"#DIV/0!"}},null,null,null,null,null,null,null,null,null,null,null,null,null,null,null,null,null,null,null,null,null,null,null,{"$f":"SUM(G27:AC27)","v":0},null,{"$f":"AE27/AD27","v":{"$error":"#DIV/0!"}}]
[null,"SINGOLARE\nFEMMINILE",null,null,null,null,null,null,null,null,null,null,null,null,null,null,null,null,null,null,null,"32esimi","16esimi","OTTAVI","QUARTI ","SEMIFINALI ","FINALE"]
[null,null,0,{"$f":"IF(C29>0,C29-AD29-1,0)","v":0},0,{"$f":"E29/C29","v":{"$error":"#DIV/0!"}},null,null,null,null,null,null,null,null,null,null,null,null,null,null,null,null,null,null,null,null,null,null,null,{"$f":"SUM(G29:AC29)","v":0},null,{"$f":"AE29/AD29","v":{"$error":"#DIV/0!"}}]
[null,"CONCLUSIONE SEZIONE xx"]
[null,null,0,{"$f":"IF(C31>0,C31-AD31-1,0)","v":0},0,{"$f":"E31/C31","v":{"$error":"#DIV/0!"}},null,null,null,null,null,null,null,null,null,null,null,null,null,null,null,null,null,null,null,null,null,null,null,{"$f":"SUM(G31:AC31)","v":0},null,{"$f":"AE31/AD31","v":{"$error":"#DIV/0!"}}]
[null,"CONCLUSIONE SEZIONE xx"]
[null,null,0,{"$f":"IF(C33>0,C33-AD33-1,0)","v":0},0,{"$f":"E33/C33","v":{"$error":"#DIV/0!"}},null,null,null,null,null,null,null,null,null,null,null,null,null,null,null,null,null,null,null,null,null,null,null,{"$f":"SUM(G33:AC33)","v":0},null,{"$f":"AE33/AD33","v":{"$error":"#DIV/0!"}}]
[null,"CONCLUSIONE SEZIONE xx"]
[null,null,0,{"$f":"IF(C35>0,C35-AD35-1,0)","v":0},0,{"$f":"E35/C35","v":{"$error":"#DIV/0!"}},null,null,null,null,null,null,null,null,null,null,null,null,null,null,null,null,null,null,null,null,null,null,null,{"$f":"SUM(G35:AC35)","v":0},null,{"$f":"AE35/AD35","v":{"$error":"#DIV/0!"}}]
[null,"CONCLUSIONE SEZIONE xx"]
[null,null,0,{"$f":"IF(C37>0,C37-AD37-1,0)","v":0},0,{"$f":"E37/C37","v":{"$error":"#DIV/0!"}},null,null,null,null,null,null,null,null,null,null,null,null,null,null,null,null,null,null,null,null,null,null,null,{"$f":"SUM(G37:AC37)","v":0},null,{"$f":"AE37/AD37","v":{"$error":"#DIV/0!"}}]
[null,"DOPPIO MASCHILE"]
[null,null,0,{"$f":"IF(C39>0,C39-AD39-1,0)","v":0},0,{"$f":"E39/C39","v":{"$error":"#DIV/0!"}},null,null,null,null,null,null,null,null,null,null,null,null,null,null,null,null,null,null,null,null,null,null,null,{"$f":"SUM(G39:AC39)","v":0},null,{"$f":"AE39/AD39","v":{"$error":"#DIV/0!"}}]
[null,"DOPPIO FEMMINILE"]
[null,null,0,{"$f":"IF(C41>0,C41-AD41-1,0)","v":0},0,{"$f":"E41/C41","v":{"$error":"#DIV/0!"}},null,null,null,null,null,null,null,null,null,null,null,null,null,null,null,null,null,null,null,null,null,null,null,{"$f":"SUM(G41:AC41)","v":0},null,{"$f":"AE41/AD41","v":{"$error":"#DIV/0!"}}]
[null,"DOPPIO MISTO"]
[null,null,0,{"$f":"IF(C43>0,C43-AD43-1,0)","v":0},0,{"$f":"E43/C43","v":{"$error":"#DIV/0!"}},null,null,null,null,null,null,null,null,null,null,null,null,null,null,null,null,null,null,null,null,null,null,null,{"$f":"SUM(G43:AC43)","v":0},null,{"$f":"AE43/AD43","v":{"$error":"#DIV/0!"}}]
[null,"TOTALI",{"$f":"SUM(C19:C43)","v":0},{"$f":"SUM(D19:D43)","v":0},{"$f":"SUM(E19,E29)","v":0},{"$f":"E44/C44","v":{"$error":"#DIV/0!"}}]
[null,"NUMERO DI PARTITE SCHEDULATE\nE CONTROLLO CON MAX INC.",null,null,null,null,{"$f":"SUM(G19,G21,G23,G25,G27,G29,G31,G33,G35,G37,G39,G41,G43)","v":0},{"$f":"SUM(H19,H21,H23,H25,H27,H29,H31,H33,H35,H37,H39,H41,H43)","v":0},0,0,0,0,{"$f":"SUM(M19,M21,M23,M25,M27,M29,M31,M33,M35,M37,M39,M41,M43)","v":0},{"$f":"SUM(N19,N21,N23,N25,N27,N29,N31,N33,N35,N37,N39,N41,N43)","v":0},0,0,0,0,0,0,0,0,0,0,0,0,0,0,0,{"$f":"SUM(G45:AC45)","v":0},{"$f":"SUM(AE19,AE21,AE23,AE25,AE27,AE29,AE31,AE33,AE35,AE37,AE39,AE41,AE43)","v":0},{"$f":"AE45/AD45","v":{"$error":"#DIV/0!"}}]
[null,null,null,null,null,null,null,null,null,null,null,null,"In base alle accettazioni per la conclusione delle sezioni intermedie inserire anche le partite dei relativi tabelloni",null,null,null,null,null,null,null,null,null,"G.A. xxxxxxxxxxxxx\n"]

{"sheet":"IMPOSTA TURNI Open-Lim","index":1,"n_rows":15,"n_cols":24,"rows_kept":15,"cut":false,"hidden":false,"merged":[]}
["N° partite \nschedulate",{"$f":"'OPEN-LIM'!G45","v":0},{"$f":"'OPEN-LIM'!H45","v":0},{"$f":"'OPEN-LIM'!I45","v":0},{"$f":"'OPEN-LIM'!J45","v":0},{"$f":"'OPEN-LIM'!K45","v":0},{"$f":"'OPEN-LIM'!L45","v":0},{"$f":"'OPEN-LIM'!M45","v":0},{"$f":"'OPEN-LIM'!N45","v":0},{"$f":"'OPEN-LIM'!O45","v":0},{"$f":"'OPEN-LIM'!P45","v":0},{"$f":"'OPEN-LIM'!Q45","v":0},{"$f":"'OPEN-LIM'!R45","v":0},{"$f":"'OPEN-LIM'!S45","v":0},{"$f":"'OPEN-LIM'!T45","v":0},{"$f":"'OPEN-LIM'!U45","v":0},{"$f":"'OPEN-LIM'!V45","v":0},{"$f":"'OPEN-LIM'!W45","v":0},{"$f":"'OPEN-LIM'!X45","v":0},{"$f":"'OPEN-LIM'!Y45","v":0},{"$f":"'OPEN-LIM'!Z45","v":0},{"$f":"'OPEN-LIM'!AA45","v":0},{"$f":"'OPEN-LIM'!AB45","v":0},{"$f":"'OPEN-LIM'!AC45","v":0}]
["Campi/Turni",{"$f":"SUM(B6:B20)","v":0},{"$f":"SUM(C6:C20)","v":0},0,0,0,0,{"$f":"SUM(H6:H20)","v":0},{"$f":"SUM(I6:I20)","v":0},0,0,0,0,0,0,0,0,0,0,0,0,0,{"$f":"SUM(W6:W20)","v":0},0]
["data",{"$f":"'OPEN-LIM'!G13","v":"gg/mm"},{"$f":"'OPEN-LIM'!H13","v":"gg/mm"},{"$f":"'OPEN-LIM'!I13","v":"gg/mm"},{"$f":"'OPEN-LIM'!J13","v":"gg/mm"},{"$f":"'OPEN-LIM'!K13","v":"gg/mm"},{"$f":"'OPEN-LIM'!L13","v":"gg/mm"},{"$f":"'OPEN-LIM'!M13","v":"gg/mm"},{"$f":"'OPEN-LIM'!N13","v":"gg/mm"},{"$f":"'OPEN-LIM'!O13","v":"gg/mm"},{"$f":"'OPEN-LIM'!P13","v":"gg/mm"},{"$f":"'OPEN-LIM'!Q13","v":"gg/mm"},{"$f":"'OPEN-LIM'!R13","v":"gg/mm"},{"$f":"'OPEN-LIM'!S13","v":"gg/mm"},{"$f":"'OPEN-LIM'!T13","v":"gg/mm"},{"$f":"'OPEN-LIM'!U13","v":"gg/mm"},{"$f":"'OPEN-LIM'!V13","v":"gg/mm"},{"$f":"'OPEN-LIM'!W13","v":"gg/mm"},{"$f":"'OPEN-LIM'!X13","v":"gg/mm"},{"$f":"'OPEN-LIM'!Y13","v":"gg/mm"},{"$f":"'OPEN-LIM'!Z13","v":"gg/mm"},{"$f":"'OPEN-LIM'!AA13","v":"gg/mm"},{"$f":"'OPEN-LIM'!AB13","v":"gg/mm"},{"$f":"'OPEN-LIM'!AC13","v":"gg/mm"}]
["giorno",{"$f":"'OPEN-LIM'!G14","v":""},{"$f":"'OPEN-LIM'!H14","v":""},{"$f":"'OPEN-LIM'!I14","v":""},{"$f":"'OPEN-LIM'!J14","v":""},{"$f":"'OPEN-LIM'!K14","v":""},{"$f":"'OPEN-LIM'!L14","v":""},{"$f":"'OPEN-LIM'!M14","v":""},{"$f":"'OPEN-LIM'!N14","v":""},{"$f":"'OPEN-LIM'!O14","v":""},{"$f":"'OPEN-LIM'!P14","v":""},{"$f":"'OPEN-LIM'!Q14","v":""},{"$f":"'OPEN-LIM'!R14","v":""},{"$f":"'OPEN-LIM'!S14","v":""},{"$f":"'OPEN-LIM'!T14","v":""},{"$f":"'OPEN-LIM'!U14","v":""},{"$f":"'OPEN-LIM'!V14","v":""},{"$f":"'OPEN-LIM'!W14","v":""},{"$f":"'OPEN-LIM'!X14","v":""},{"$f":"'OPEN-LIM'!Y14","v":""},{"$f":"'OPEN-LIM'!Z14","v":""},{"$f":"'OPEN-LIM'!AA14","v":""},{"$f":"'OPEN-LIM'!AB14","v":""},{"$f":"'OPEN-LIM'!AC14","v":""}]
["tipo",{"$f":"'OPEN-LIM'!G15","v":0},{"$f":"'OPEN-LIM'!H15","v":0},{"$f":"'OPEN-LIM'!I15","v":0},{"$f":"'OPEN-LIM'!J15","v":0},{"$f":"'OPEN-LIM'!K15","v":0},{"$f":"'OPEN-LIM'!L15","v":0},{"$f":"'OPEN-LIM'!M15","v":0},{"$f":"'OPEN-LIM'!N15","v":0},{"$f":"'OPEN-LIM'!O15","v":0},{"$f":"'OPEN-LIM'!P15","v":0},{"$f":"'OPEN-LIM'!Q15","v":0},{"$f":"'OPEN-LIM'!R15","v":0},{"$f":"'OPEN-LIM'!S15","v":0},{"$f":"'OPEN-LIM'!T15","v":0},{"$f":"'OPEN-LIM'!U15","v":0},{"$f":"'OPEN-LIM'!V15","v":0},{"$f":"'OPEN-LIM'!W15","v":0},{"$f":"'OPEN-LIM'!X15","v":0},{"$f":"'OPEN-LIM'!Y15","v":0},{"$f":"'OPEN-LIM'!Z15","v":0},{"$f":"'OPEN-LIM'!AA15","v":0},{"$f":"'OPEN-LIM'!AB15","v":0},{"$f":"'OPEN-LIM'!AC15","v":0}]
["campo/turni"]
["campo/turni"]
["campo/turni"]
["campo/turni"]
["campo/turni"]
["campo/turni"]
["campo/turni"]
["campo/turni"]
["campo/turni"]
["campo/turni"]

{"sheet":"Es. OPEN-LIM","index":2,"n_rows":46,"n_cols":32,"rows_kept":46,"cut":false,"hidden":false,"merged":[[13,29,14,31],[45,22,46,24],[9,14,9,26],[10,14,10,26],[16,1,16,3],[12,1,15,1],[12,2,15,2],[12,4,15,4],[12,3,15,3],[44,1,44,5],[1,15,1,26],[2,15,2,16],[4,18,4,20],[5,18,5,20],[12,29,12,31]]}
[]
[null,null,null,null,null,null,null,null,null,null,null,null,null,null,null,"PARAMETRI TORNEO x stima n. INCONTRI MAX (da compilare)"]
[null,null,null,null,null,null,null,null,null,null,null,null,null,null,null,"n. giorni TORNEO",null,15,null,"n. campi con luci",3,"n. campi senza luci",1,"superficie","terra","indoor / outdoor","all' aperto"]
[]
[null,null,null,null,null,null,null,null,null,null,null,null,null,null,null,null,null,"formula SING.","2 set su 3 a 6 giochi, terzo set tie break a 10 pti",null,null,"interv. tra SING","1h30m","1° orario fer.","14:00:00","ult. orario fer.","21:30:00"]
[null,null,null,null,null,null,null,null,null,null,null,null,null,null,null,null,null,"formula DOPPI","2 set su 3 a 6 giochi con no-adv, terzo set tie break a 10 pti",null,null,"interv. tra DOPPI","1h15m","1° orario fest.","10:00:00","ult. orario fest.","19:00:00"]
[]
[]
[]
[null,null,null,null,null,null,null,null,null,null,null,null,null,null,"PROGRAMMA TORNEO DI 3° CATEGORIA con DM-DF-DMX"]
[null,null,null,null,null,null,null,null,null,null,null,null,null,null,"PROGRAMMAZIONE INDICATIVA DEGLI INCONTRI DI TUTTI I TABELLONI DEL TORNEO (05 02- 19 02 2024)"]
[]
[null,"GARE","n° \nATLETI ISCRITTI/\nCOPPIE\n","n° \nPARTITE \nDA\nPIANIFICARE","ass.","     data",null,null,null,null,null,null,"2024-02-05","2024-02-06","2024-02-07","2024-02-08","2024-02-09","2024-02-10","2024-02-11","2024-02-12","2024-02-13","2024-02-14","2024-02-15","2024-02-16","2024-02-17","2024-02-18","2024-02-19","gg/mm","gg/mm","INCONTRI"]
[null,null,null,null,null,"  giorno",{"$f":"IF(G13=\"gg/mm\",\"\",(IF(G13=\"\",\"\",G13)))","v":""},{"$f":"IF(H13=\"gg/mm\",\"\",(IF(H13=\"\",\"\",H13)))","v":""},"","","","","2024-02-05","2024-02-06","2024-02-07","2024-02-08","2024-02-09","2024-02-10","2024-02-11","2024-02-12","2024-02-13","2024-02-14","2024-02-15","2024-02-16","2024-02-17","2024-02-18","2024-02-19",{"$f":"IF(AB13=\"gg/mm\",\"\",(IF(AB13=\"\",\"\",AB13)))","v":""},{"$f":"IF(AC13=\"gg/mm\",\"\",(IF(AC13=\"\",\"\",AC13)))","v":""},"DATA FINE TORNEO"]
[null,null,null,null,null,"    tipo",null,null,null,null,null,null,"feriale","feriale","feriale","feriale","feriale","feriale","festivo","feriale","feriale","feriale","feriale","feriale","feriale","festivo","feriale"]
[null,null,null,null,null,"campi/\nturni","IMPOSTA","IMPOSTA","IMPOSTA","IMPOSTA","IMPOSTA","IMPOSTA","IMPOSTA","IMPOSTA","IMPOSTA","IMPOSTA","IMPOSTA","IMPOSTA","IMPOSTA","IMPOSTA","IMPOSTA","IMPOSTA","IMPOSTA","IMPOSTA","IMPOSTA","IMPOSTA","IMPOSTA","IMPOSTA","IMPOSTA","n°","n.d."]
[null,null,null,null,null,"MAX INC.",{"$f":"IF('Es.IMPOSTA TURNI Open-Lim'!B2>0,'Es.IMPOSTA TURNI Open-Lim'!B2,0)","v":0},{"$f":"IF('Es.IMPOSTA TURNI Open-Lim'!C2>0,'Es.IMPOSTA TURNI Open-Lim'!C2,0)","v":0},{"$f":"IF('Es.IMPOSTA TURNI Open-Lim'!D2>0,'Es.IMPOSTA TURNI Open-Lim'!D2,0)","v":0},{"$f":"IF('Es.IMPOSTA TURNI Open-Lim'!E2>0,'Es.IMPOSTA TURNI Open-Lim'!E2,0)","v":0},{"$f":"IF('Es.IMPOSTA TURNI Open-Lim'!F2>0,'Es.IMPOSTA TURNI Open-Lim'!F2,0)","v":0},{"$f":"IF('Es.IMPOSTA TURNI Open-Lim'!G2>0,'Es.IMPOSTA TURNI Open-Lim'!G2,0)","v":0},{"$f":"IF('Es.IMPOSTA TURNI Open-Lim'!H2>0,'Es.IMPOSTA TURNI Open-Lim'!H2,0)","v":6},{"$f":"IF('Es.IMPOSTA TURNI Open-Lim'!I2>0,'Es.IMPOSTA TURNI Open-Lim'!I2,0)","v":10},{"$f":"IF('Es.IMPOSTA TURNI Open-Lim'!J2>0,'Es.IMPOSTA TURNI Open-Lim'!J2,0)","v":13},{"$f":"IF('Es.IMPOSTA TURNI Open-Lim'!K2>0,'Es.IMPOSTA TURNI Open-Lim'!K2,0)","v":16},{"$f":"IF('Es.IMPOSTA TURNI Open-Lim'!L2>0,'Es.IMPOSTA TURNI Open-Lim'!L2,0)","v":16},{"$f":"IF('Es.IMPOSTA TURNI Open-Lim'!M2>0,'Es.IMPOSTA TURNI Open-Lim'!M2,0)","v":15},{"$f":"IF('Es.IMPOSTA TURNI Open-Lim'!N2>0,'Es.IMPOSTA TURNI Open-Lim'!N2,0)","v":18},{"$f":"IF('Es.IMPOSTA TURNI Open-Lim'!O2>0,'Es.IMPOSTA TURNI Open-Lim'!O2,0)","v":11},{"$f":"IF('Es.IMPOSTA TURNI Open-Lim'!P2>0,'Es.IMPOSTA TURNI Open-Lim'!P2,0)","v":20},{"$f":"IF('Es.IMPOSTA TURNI Open-Lim'!Q2>0,'Es.IMPOSTA TURNI Open-Lim'!Q2,0)","v":20},{"$f":"IF('Es.IMPOSTA TURNI Open-Lim'!R2>0,'Es.IMPOSTA TURNI Open-Lim'!R2,0)","v":21},{"$f":"IF('Es.IMPOSTA TURNI Open-Lim'!S2>0,'Es.IMPOSTA TURNI Open-Lim'!S2,0)","v":19},{"$f":"IF('Es.IMPOSTA TURNI Open-Lim'!T2>0,'Es.IMPOSTA TURNI Open-Lim'!T2,0)","v":18},{"$f":"IF('Es.IMPOSTA TURNI Open-Lim'!U2>0,'Es.IMPOSTA TURNI Open-Lim'!U2,0)","v":10},{"$f":"IF('Es.IMPOSTA TURNI Open-Lim'!V2>0,'Es.IMPOSTA TURNI Open-Lim'!V2,0)","v":2},{"$f":"IF('Es.IMPOSTA TURNI Open-Lim'!W2>0,'Es.IMPOSTA TURNI Open-Lim'!W2,0)","v":0},{"$f":"IF('Es.IMPOSTA TURNI Open-Lim'!X2>0,'Es.IMPOSTA TURNI Open-Lim'!X2,0)","v":0}]
[null,"SINGOLARE\nMASCHILE",null,null,null,null,null,null,null,null,null,null,"Q 1°  \n(3)","Q 2° \n (7)","Q 1° \n(9)","Q 2° \n (9)","Q 3° \n (12)","Q 4°  \n(12)","Q 5° \n(12)","1° turno","2° turno","32esimi","16esimi","OTTAVI","QUARTI ","SEMIFINALI ","FINALE"]
[null,null,117,{"$f":"IF(C19>0,C19-AD19-1,0)","v":0},2,{"$f":"E19/C19","v":1.7094017094017096E-2},null,null,null,null,null,null,3,7,9,9,12,12,12,7,10,10,10,8,4,2,1,null,null,{"$f":"SUM(G19:AC19)","v":116},null,{"$f":"AE19/AD19","v":0}]
[null,"CONCLUSIONE SEZIONE 4NC",null,null,null,null,null,null,null,null,null,null,null,null,null,null,null,null,null,null,null,null,null,null,"SEMIFINALI","FINALE"]
[null,null,4,{"$f":"IF(C21>0,C21-AD21-1,0)","v":0},0,{"$f":"E21/C21","v":0},null,null,null,null,null,null,null,null,null,null,null,null,null,null,null,null,null,null,2,1,null,null,null,{"$f":"SUM(G21:AC21)","v":3},null,{"$f":"AE21/AD21","v":0}]
[null,"CONCLUSIONE SEZIONE 4.1",null,null,null,null,null,null,null,null,null,null,null,null,null,null,null,null,null,null,null,null,null,"QUARTI","SEMIFINALI","FINALE"]
[null,null,6,{"$f":"IF(C23>0,C23-AD23-1,0)","v":0},0,{"$f":"E23/C23","v":0},null,null,null,null,null,null,null,null,null,null,null,null,null,null,null,null,null,2,2,1,null,null,null,{"$f":"SUM(G23:AC23)","v":5},null,{"$f":"AE23/AD23","v":0}]
[null,"CONCLUSIONE SEZIONE xx"]
[null,null,0,{"$f":"IF(C25>0,C25-AD25-1,0)","v":0},0,{"$f":"E25/C25","v":{"$error":"#DIV/0!"}},null,null,null,null,null,null,null,null,null,null,null,null,null,null,null,null,null,null,null,null,null,null,null,{"$f":"SUM(G25:AC25)","v":0},null,{"$f":"AE25/AD25","v":{"$error":"#DIV/0!"}}]
[null,"CONCLUSIONE SEZIONE xx"]
[null,null,0,{"$f":"IF(C27>0,C27-AD27-1,0)","v":0},0,{"$f":"E27/C27","v":{"$error":"#DIV/0!"}},null,null,null,null,null,null,null,null,null,null,null,null,null,null,null,null,null,null,null,null,null,null,null,{"$f":"SUM(G27:AC27)","v":0},null,{"$f":"AE27/AD27","v":{"$error":"#DIV/0!"}}]
[null,"SINGOLARE\nFEMMINILE",null,null,null,null,null,null,null,null,null,null,"Q 1° Turno\n (3)","Q 2° Turno \n(3)","Q 1° Turno\n (4)","Q 2° Turno \n(7)","Q 3° Turno\n (7)",null,"Q 4° Turno\n (6)","1° turno","32esimi \n(8)",null,"16esimi","OTTAVI(5)","QUARTI ","SEMIFINALI ","FINALE"]
[null,null,60,{"$f":"IF(C29>0,C29-AD29-1,0)","v":0},1,{"$f":"E29/C29","v":1.6666666666666666E-2},null,null,null,null,null,null,3,3,4,7,4,3,6,4,8,null,5,5,4,2,1,null,null,{"$f":"SUM(G29:AC29)","v":59},null,{"$f":"AE29/AD29","v":0}]
[null,"CONCLUSIONE SEZIONE 4.1",null,null,null,null,null,null,null,null,null,null,null,null,null,null,null,null,null,null,null,null,null,null,"SEMIFINALI","FINALE"]
[null,null,4,{"$f":"IF(C31>0,C31-AD31-1,0)","v":0},0,{"$f":"E31/C31","v":0},null,null,null,null,null,null,null,null,null,null,null,null,null,null,null,null,null,null,2,1,null,null,null,{"$f":"SUM(G31:AC31)","v":3},null,{"$f":"AE31/AD31","v":0}]
[null,"CONCLUSIONE SEZIONE xx"]
[null,null,0,{"$f":"IF(C33>0,C33-AD33-1,0)","v":0},0,{"$f":"E33/C33","v":{"$error":"#DIV/0!"}},null,null,null,null,null,null,null,null,null,null,null,null,null,null,null,null,null,null,null,null,null,null,null,{"$f":"SUM(G33:AC33)","v":0},null,{"$f":"AE33/AD33","v":{"$error":"#DIV/0!"}}]
[null,"CONCLUSIONE SEZIONE xx"]
[null,null,0,{"$f":"IF(C35>0,C35-AD35-1,0)","v":0},0,{"$f":"E35/C35","v":{"$error":"#DIV/0!"}},null,null,null,null,null,null,null,null,null,null,null,null,null,null,null,null,null,null,null,null,null,null,null,{"$f":"SUM(G35:AC35)","v":0},null,{"$f":"AE35/AD35","v":{"$error":"#DIV/0!"}}]
[null,"CONCLUSIONE SEZIONE xx"]
[null,null,0,{"$f":"IF(C37>0,C37-AD37-1,0)","v":0},0,{"$f":"E37/C37","v":{"$error":"#DIV/0!"}},null,null,null,null,null,null,null,null,null,null,null,null,null,null,null,null,null,null,null,null,null,null,null,{"$f":"SUM(G37:AC37)","v":0},null,{"$f":"AE37/AD37","v":{"$error":"#DIV/0!"}}]
[null,"DOPPIO MASCHILE",null,null,null,null,null,null,null,null,null,null,null,null,null,null,null,null,null,null,null,"OTTAVI",null,"QUARTI ","SEMIFINALI ","FINALE"]
[null,null,16,{"$f":"IF(C39>0,C39-AD39-1,0)","v":0},0,{"$f":"E39/C39","v":0},null,null,null,null,null,null,null,null,null,null,null,null,null,null,null,8,null,4,2,1,null,null,null,{"$f":"SUM(G39:AC39)","v":15},null,{"$f":"AE39/AD39","v":0}]
[null,"DOPPIO FEMMINILE",null,null,null,null,null,null,null,null,null,null,null,null,null,null,null,null,null,null,"QUARTI ",null,"SEMIFINALI ",null,null,"FINALE"]
[null,null,8,{"$f":"IF(C41>0,C41-AD41-1,0)","v":0},0,{"$f":"E41/C41","v":0},null,null,null,null,null,null,null,null,null,null,null,null,null,null,2,2,2,null,null,1,null,null,null,{"$f":"SUM(G41:AC41)","v":7},null,{"$f":"AE41/AD41","v":0}]
[null,"DOPPIO MISTO",null,null,null,null,null,null,null,null,null,null,null,null,null,null,null,null,null,null,null,null,"QUARTI ",null,"SEMIFINALI","FINALE"]
[null,null,8,{"$f":"IF(C43>0,C43-AD43-1,0)","v":0},0,{"$f":"E43/C43","v":0},null,null,null,null,null,null,null,null,null,null,null,null,null,null,null,null,4,null,2,1,null,null,null,{"$f":"SUM(G43:AC43)","v":7},null,{"$f":"AE43/AD43","v":0}]
[null,"TOTALI",{"$f":"SUM(C19:C43,)","v":223},{"$f":"SUM(D19:D43)","v":0},{"$f":"SUM(E19,E29)","v":3},{"$f":"E44/C44","v":1.3452914798206279E-2}]
[null,"NUMERO DI PARTITE SCHEDULATE\nE CONTROLLO CON MAX INC.",null,null,null,null,{"$f":"SUM(G19,G21,G23,G25,G27,G29,G31,G33,G35,G37,G39,G41,G43)","v":0},{"$f":"SUM(H19,H21,H23,H25,H27,H29,H31,H33,H35,H37,H39,H41,H43)","v":0},0,0,0,0,{"$f":"SUM(M19,M21,M23,M25,M27,M29,M31,M33,M35,M37,M39,M41,M43)","v":6},{"$f":"SUM(N19,N21,N23,N25,N27,N29,N31,N33,N35,N37,N39,N41,N43)","v":10},13,16,16,15,18,11,20,20,21,19,18,10,2,0,0,{"$f":"SUM(G45:AC45)","v":215},{"$f":"SUM(AE13,AE15,AE17,AE19,AE21,AE23,AE25,AE27,AE29,AE31,AE33,AE35,AE37,AE39,AE41,AE43)","v":0},{"$f":"AE45/AD45","v":0}]
[null,null,null,null,null,null,null,null,null,null,null,null,"In base alle accettazioni per la conclusione delle sezioni intermedie inserire anche le partite dei relativi tabelloni",null,null,null,null,null,null,null,null,null,"G.A. xxxxxxxxxxxxx\n"]

{"sheet":"Es.IMPOSTA TURNI Open-Lim","index":3,"n_rows":23,"n_cols":24,"rows_kept":23,"cut":false,"hidden":false,"merged":[[21,13,21,21],[22,13,22,21]]}
["N° partite \nschedulate",{"$f":"'Es. OPEN-LIM'!G45","v":0},{"$f":"'Es. OPEN-LIM'!H45","v":0},{"$f":"'Es. OPEN-LIM'!I45","v":0},{"$f":"'Es. OPEN-LIM'!J45","v":0},{"$f":"'Es. OPEN-LIM'!K45","v":0},{"$f":"'Es. OPEN-LIM'!L45","v":0},{"$f":"'Es. OPEN-LIM'!M45","v":6},{"$f":"'Es. OPEN-LIM'!N45","v":10},{"$f":"'Es. OPEN-LIM'!O45","v":13},{"$f":"'Es. OPEN-LIM'!P45","v":16},{"$f":"'Es. OPEN-LIM'!Q45","v":16},{"$f":"'Es. OPEN-LIM'!R45","v":15},{"$f":"'Es. OPEN-LIM'!S45","v":18},{"$f":"'Es. OPEN-LIM'!T45","v":11},{"$f":"'Es. OPEN-LIM'!U45","v":20},{"$f":"'Es. OPEN-LIM'!V45","v":20},{"$f":"'Es. OPEN-LIM'!W45","v":21},{"$f":"'Es. OPEN-LIM'!X45","v":19},{"$f":"'Es. OPEN-LIM'!Y45","v":18},{"$f":"'Es. OPEN-LIM'!Z45","v":10},{"$f":"'Es. OPEN-LIM'!AA45","v":2},{"$f":"'Es. OPEN-LIM'!AB45","v":0},{"$f":"'Es. OPEN-LIM'!AC45","v":0}]
["Campi/Turni",{"$f":"SUM(B6:B20)","v":0},{"$f":"SUM(C6:C20)","v":0},0,0,0,0,{"$f":"SUM(H6:H20)","v":6},{"$f":"SUM(I6:I20)","v":10},13,16,16,15,18,11,20,20,21,19,18,10,2,0,0]
["data",{"$f":"'Es. OPEN-LIM'!G13","v":"00:00:00"},{"$f":"'Es. OPEN-LIM'!H13","v":"00:00:00"},{"$f":"'Es. OPEN-LIM'!I13","v":"00:00:00"},{"$f":"'Es. OPEN-LIM'!J13","v":"00:00:00"},{"$f":"'Es. OPEN-LIM'!K13","v":"00:00:00"},{"$f":"'Es. OPEN-LIM'!L13","v":"00:00:00"},{"$f":"'Es. OPEN-LIM'!M13","v":"2024-02-05"},{"$f":"'Es. OPEN-LIM'!N13","v":"2024-02-06"},{"$f":"'Es. OPEN-LIM'!O13","v":"2024-02-07"},{"$f":"'Es. OPEN-LIM'!P13","v":"2024-02-08"},{"$f":"'Es. OPEN-LIM'!Q13","v":"2024-02-09"},{"$f":"'Es. OPEN-LIM'!R13","v":"2024-02-10"},{"$f":"'Es. OPEN-LIM'!S13","v":"2024-02-11"},{"$f":"'Es. OPEN-LIM'!T13","v":"2024-02-12"},{"$f":"'Es. OPEN-LIM'!U13","v":"2024-02-13"},{"$f":"'Es. OPEN-LIM'!V13","v":"2024-02-14"},{"$f":"'Es. OPEN-LIM'!W13","v":"2024-02-15"},{"$f":"'Es. OPEN-LIM'!X13","v":"2024-02-16"},{"$f":"'Es. OPEN-LIM'!Y13","v":"2024-02-17"},{"$f":"'Es. OPEN-LIM'!Z13","v":"2024-02-18"},{"$f":"'Es. OPEN-LIM'!AA13","v":"2024-02-19"},{"$f":"'Es. OPEN-LIM'!AB13","v":"gg/mm"},{"$f":"'Es. OPEN-LIM'!AC13","v":"gg/mm"}]
["giorno",{"$f":"'Es. OPEN-LIM'!G14","v":""},{"$f":"'Es. OPEN-LIM'!H14","v":""},{"$f":"'Es. OPEN-LIM'!I14","v":""},{"$f":"'Es. OPEN-LIM'!J14","v":""},{"$f":"'Es. OPEN-LIM'!K14","v":""},{"$f":"'Es. OPEN-LIM'!L14","v":""},{"$f":"'Es. OPEN-LIM'!M14","v":"2024-02-05"},{"$f":"'Es. OPEN-LIM'!N14","v":"2024-02-06"},{"$f":"'Es. OPEN-LIM'!O14","v":"2024-02-07"},{"$f":"'Es. OPEN-LIM'!P14","v":"2024-02-08"},{"$f":"'Es. OPEN-LIM'!Q14","v":"2024-02-09"},{"$f":"'Es. OPEN-LIM'!R14","v":"2024-02-10"},{"$f":"'Es. OPEN-LIM'!S14","v":"2024-02-11"},{"$f":"'Es. OPEN-LIM'!T14","v":"2024-02-12"},{"$f":"'Es. OPEN-LIM'!U14","v":"2024-02-13"},{"$f":"'Es. OPEN-LIM'!V14","v":"2024-02-14"},{"$f":"'Es. OPEN-LIM'!W14","v":"2024-02-15"},{"$f":"'Es. OPEN-LIM'!X14","v":"2024-02-16"},{"$f":"'Es. OPEN-LIM'!Y14","v":"2024-02-17"},{"$f":"'Es. OPEN-LIM'!Z14","v":"2024-02-18"},{"$f":"'Es. OPEN-LIM'!AA14","v":"2024-02-19"},{"$f":"'Es. OPEN-LIM'!AB14","v":""},{"$f":"'Es. OPEN-LIM'!AC14","v":""}]
["tipo",{"$f":"'Es. OPEN-LIM'!G15","v":0},{"$f":"'Es. OPEN-LIM'!H15","v":0},{"$f":"'Es. OPEN-LIM'!I15","v":0},{"$f":"'Es. OPEN-LIM'!J15","v":0},{"$f":"'Es. OPEN-LIM'!K15","v":0},{"$f":"'Es. OPEN-LIM'!L15","v":0},{"$f":"'Es. OPEN-LIM'!M15","v":"feriale"},{"$f":"'Es. OPEN-LIM'!N15","v":"feriale"},{"$f":"'Es. OPEN-LIM'!O15","v":"feriale"},{"$f":"'Es. OPEN-LIM'!P15","v":"feriale"},{"$f":"'Es. OPEN-LIM'!Q15","v":"feriale"},{"$f":"'Es. OPEN-LIM'!R15","v":"feriale"},{"$f":"'Es. OPEN-LIM'!S15","v":"festivo"},{"$f":"'Es. OPEN-LIM'!T15","v":"feriale"},{"$f":"'Es. OPEN-LIM'!U15","v":"feriale"},{"$f":"'Es. OPEN-LIM'!V15","v":"feriale"},{"$f":"'Es. OPEN-LIM'!W15","v":"feriale"},{"$f":"'Es. OPEN-LIM'!X15","v":"feriale"},{"$f":"'Es. OPEN-LIM'!Y15","v":"feriale"},{"$f":"'Es. OPEN-LIM'!Z15","v":"festivo"},{"$f":"'Es. OPEN-LIM'!AA15","v":"feriale"},{"$f":"'Es. OPEN-LIM'!AB15","v":0},{"$f":"'Es. OPEN-LIM'!AC15","v":0}]
["campo/turni",null,null,null,null,null,null,2,2,2,2,null,2,4,2,2,2,2,2,3,3]
["campo/turni",null,null,null,null,null,null,4,4,3,4,6,5,4,4,6,6,6,5,5,3,2]
["campo/turni",null,null,null,null,null,null,null,4,4,5,5,4,4,5,6,6,6,6,5,4]
["campo/turni",null,null,null,null,null,null,null,null,4,5,5,4,6,null,6,6,6,6,5]
["campo/turni",null,null,null,null,null,null,null,null,null,null,null,null,null,null,null,null,1]
["campo/turni"]
["campo/turni"]
["campo/turni"]
["campo/turni"]
["campo/turni"]
[]
[]
[]
[]
[]
[]
[null,null,null,null,null,null,null,null,null,null,null,null,null,"N.B. IL TORNEO DURA 15 GIORNI anzichè 21 , selezionare le prime colonne e 'nasconderle'"]
[null,null,null,null,null,null,null,null,null,null,null,null,null,"IN QUESTO ES. LE COLONNE DA B A G SONO NASCOSTE"]

{"sheet":"PARAMETRI","index":4,"n_rows":32,"n_cols":3,"rows_kept":32,"cut":false,"hidden":true,"merged":[]}
["MATCH_FORMAT",null,"ORARI"]
["2 set su 3 a 4 giochi",null,"08:30:00"]
["2 set su 3 a 4 giochi con no-adv",null,"09:00:00"]
["2 set su 3 a 4 giochi con no-adv, terzo set tie break a 10 pti",null,"09:30:00"]
["2 set su 3 a 4 giochi con no-adv, terzo set tie break a 7 pti",null,"10:00:00"]
["2 set su 3 a 6 giochi",null,"10:30:00"]
["2 set su 3 a 6 giochi con no-adv",null,"11:00:00"]
["2 set su 3 a 6 giochi, terzo set tie break a 10 pti",null,"11:30:00"]
["2 set su 3 a 6 giochi, terzo set tie break a 7 pti",null,"12:00:00"]
["2 set su 3 a 6 giochi con no-adv, terzo set tie break a 10 pti",null,"12:30:00"]
["2 set su 3 a 6 giochi con no-adv, terzo set tie break a 7 pti",null,"13:00:00"]
["3 set su 5 a 4 giochi, con o senza no-adv e tie break decisivo dell'incontr",null,"13:30:00"]
["3 set su 5 a 6 giochi",null,"14:00:00"]
["3 set su 5 a 6 giochi con no adv",null,"14:30:00"]
["partita a 9 giochi con tie break a 7 pti",null,"15:00:00"]
["unico set a sei giochi con tie break",null,"15:30:00"]
[null,null,"16:00:00"]
[null,null,"16:30:00"]
[null,null,"17:00:00"]
[null,null,"17:30:00"]
[null,null,"18:00:00"]
[null,null,"18:30:00"]
[null,null,"19:00:00"]
[null,null,"19:30:00"]
[null,null,"20:00:00"]
[null,null,"20:30:00"]
[null,null,"21:00:00"]
[null,null,"21:30:00"]
[null,null,"22:00:00"]
[null,null,"22:30:00"]
[null,null,"23:00:00"]
[null,null,"23:30:00"]